[Event "*** Titled Tuesday Blitz"]
[Site "Chess.com"]
[Date "2020.04.28"]
[Round "2"]
[White "ErikRonka"]
[Black "ChessMavenYeti"]
[Result "1-0"]
[WhiteElo "2426"]
[BlackElo "2176"]
[TimeControl "180+1"]
[EndTime "10:17:52 PDT"]
[Termination "ErikRonka won by checkmate"]

1. e4 {[%clk 0:03:00.9]} 1... e6 {[%clk 0:02:49.4]} 2. d4 {[%clk 0:03:00.1]}
2... d5 {[%clk 0:02:50]} 3. Nc3 {[%clk 0:03:00.1]} 3... Be7 {[%clk 0:02:47.8]}
4. Bd3 {[%clk 0:02:51.8]} 4... Nc6 {[%clk 0:02:45.1]} 5. Nf3 {[%clk 0:02:46.5]}
5... Nb4 {[%clk 0:02:44.9]} 6. Bb5+ {[%clk 0:02:36.8]} 6... c6 {[%clk
0:02:44.3]} 7. Be2 {[%clk 0:02:35]} 7... Nf6 {[%clk 0:02:30]} 8. e5 {[%clk
0:02:34.7]} 8... Ne4 {[%clk 0:02:29.3]} 9. O-O {[%clk 0:02:33]} 9... Nxc3 {[%clk
0:02:28.3]} 10. bxc3 {[%clk 0:02:32.8]} 10... Na6 {[%clk 0:02:29.2]} 11. Rb1
{[%clk 0:02:05.2]} 11... O-O {[%clk 0:02:25.5]} 12. Ne1 {[%clk 0:01:55.9]} 12...
c5 {[%clk 0:02:23.9]} 13. f4 {[%clk 0:01:55.2]} 13... f5 {[%clk 0:02:13]} 14.
exf6 {[%clk 0:01:48.7]} 14... Rxf6 {[%clk 0:02:08.2]} 15. Nf3 {[%clk 0:01:48.4]}
15... Qc7 {[%clk 0:02:00.6]} 16. Ne5 {[%clk 0:01:39.2]} 16... cxd4 {[%clk
0:01:59.9]} 17. cxd4 {[%clk 0:01:39]} 17... Nb4 {[%clk 0:01:59.8]} 18. Rb2
{[%clk 0:01:09.8]} 18... Bd7 {[%clk 0:01:50.8]} 19. c4 {[%clk 0:01:07.1]} 19...
dxc4 {[%clk 0:01:44.8]} 20. Bxc4 {[%clk 0:01:06]} 20... Nd5 {[%clk 0:01:44.2]}
21. Qb3 {[%clk 0:00:59.8]} 21... Nb6 {[%clk 0:01:30.2]} 22. Bd3 {[%clk
0:00:46.1]} 22... Rd8 {[%clk 0:01:12.4]} 23. Be4 {[%clk 0:00:41.5]} 23... Ba4
{[%clk 0:01:05.7]} 24. Qh3 {[%clk 0:00:40.6]} 24... h6 {[%clk 0:00:57.9]} 25.
Ng4 {[%clk 0:00:36.8]} 25... Rf7 {[%clk 0:00:43.2]} 26. Bg6 {[%clk 0:00:32.1]}
26... Rff8 {[%clk 0:00:33.3]} 27. Ne5 {[%clk 0:00:31.3]} 27... Rxd4 {[%clk
0:00:28.5]} 28. Qxe6+ {[%clk 0:00:30.7]} 28... Kh8 {[%clk 0:00:27.7]} 29. Nf7+
{[%clk 0:00:28.1]} 29... Rxf7 {[%clk 0:00:24.8]} 30. Qxf7 {[%clk 0:00:29]} 30...
Rd8 {[%clk 0:00:18.3]} 31. Be3 {[%clk 0:00:25.7]} 31... Qc3 {[%clk 0:00:10.5]}
32. Qxe7 {[%clk 0:00:18]} 32... Rd3 {[%clk 0:00:06.6]} 33. Re2 {[%clk
0:00:17.1]} 33... Rd7 {[%clk 0:00:04.5]} 34. Qf8# {[%clk 0:00:16.7]} 1-0

[Event "*** Titled Tuesday Blitz"]
[Site "Chess.com"]
[Date "2020.04.28"]
[Round "2"]
[White "BocharovD"]
[Black "Atanejhad"]
[Result "1-0"]
[WhiteElo "2799"]
[BlackElo "2523"]
[TimeControl "180+1"]
[EndTime "10:17:53 PDT"]
[Termination "BocharovD won on time"]

1. c4 {[%clk 0:03:00.9]} 1... Nf6 {[%clk 0:02:58.5]} 2. g3 {[%clk 0:02:58.1]}
2... c6 {[%clk 0:02:50.1]} 3. Nf3 {[%clk 0:02:57.5]} 3... d5 {[%clk 0:02:50]} 4.
Bg2 {[%clk 0:02:58.1]} 4... Bf5 {[%clk 0:02:49.2]} 5. cxd5 {[%clk 0:02:55.5]}
5... cxd5 {[%clk 0:02:48.3]} 6. Qb3 {[%clk 0:02:55.5]} 6... Qb6 {[%clk
0:02:44.5]} 7. Qxb6 {[%clk 0:02:54.6]} 7... axb6 {[%clk 0:02:45.4]} 8. Nc3
{[%clk 0:02:54.9]} 8... Bd7 {[%clk 0:02:39.1]} 9. O-O {[%clk 0:02:45.4]} 9... e6
{[%clk 0:02:39.5]} 10. d3 {[%clk 0:02:43.7]} 10... Bc5 {[%clk 0:02:34.2]} 11.
Bf4 {[%clk 0:02:41.9]} 11... Ke7 {[%clk 0:02:28.1]} 12. a3 {[%clk 0:02:40.8]}
12... Rc8 {[%clk 0:02:23.9]} 13. Rfc1 {[%clk 0:02:39.5]} 13... Ng4 {[%clk
0:01:51.7]} 14. e3 {[%clk 0:02:31.8]} 14... h6 {[%clk 0:01:47.1]} 15. h3 {[%clk
0:02:21.4]} 15... Nf6 {[%clk 0:01:46.2]} 16. d4 {[%clk 0:01:59.7]} 16... Bd6
{[%clk 0:01:45.1]} 17. Bxd6+ {[%clk 0:01:57]} 17... Kxd6 {[%clk 0:01:46]} 18.
Ne5 {[%clk 0:01:52.1]} 18... Ke7 {[%clk 0:01:35.5]} 19. Bf1 {[%clk 0:01:37.6]}
19... Bc6 {[%clk 0:00:55.1]} 20. Na2 {[%clk 0:01:27.3]} 20... Nbd7 {[%clk
0:00:50.5]} 21. Nxd7 {[%clk 0:01:22.9]} 21... Bxd7 {[%clk 0:00:45.1]} 22. f3
{[%clk 0:01:21.7]} 22... Ne8 {[%clk 0:00:42.7]} 23. Kf2 {[%clk 0:01:19.4]} 23...
Nd6 {[%clk 0:00:42.7]} 24. Nc3 {[%clk 0:01:14.5]} 24... f6 {[%clk 0:00:25.5]}
25. e4 {[%clk 0:01:12.3]} 25... Bc6 {[%clk 0:00:22.3]} 26. Bd3 {[%clk
0:01:11.1]} 26... f5 {[%clk 0:00:06.7]} 27. exf5 {[%clk 0:01:04.9]} 27... exf5
{[%clk 0:00:04.1]} 28. Re1+ {[%clk 0:01:03.4]} 28... Kf6 {[%clk 0:00:04.4]} 29.
Re5 {[%clk 0:01:02.4]} 29... Nc4 {[%clk 0:00:04.4]} 30. Rxf5+ {[%clk 0:00:58.3]}
30... Ke6 {[%clk 0:00:04.6]} 31. Re1+ {[%clk 0:00:57.5]} 31... Kd6 {[%clk
0:00:05]} 32. Bxc4 {[%clk 0:00:56.6]} 32... dxc4 {[%clk 0:00:05.9]} 33. d5
{[%clk 0:00:54.9]} 33... Bd7 {[%clk 0:00:05.6]} 34. Ne4+ {[%clk 0:00:54.4]}
34... Kc7 {[%clk 0:00:04.6]} 35. Rf7 {[%clk 0:00:54.6]} 35... b5 {[%clk
0:00:05.1]} 36. Rxg7 {[%clk 0:00:54.3]} 36... b4 {[%clk 0:00:03.5]} 37. Nf6
{[%clk 0:00:46.1]} 37... Kd6 {[%clk 0:00:01.9]} 38. Rxd7+ {[%clk 0:00:45]} 38...
Kc5 {[%clk 0:00:01.9]} 39. Ne4+ {[%clk 0:00:44.7]} 39... Kb5 {[%clk 0:00:01.7]}
40. Nd6+ {[%clk 0:00:44.2]} 40... Ka4 {[%clk 0:00:02.6]} 41. Nxc8 {[%clk
0:00:43.9]} 1-0

[Event "*** Titled Tuesday Blitz"]
[Site "Chess.com"]
[Date "2020.04.28"]
[Round "2"]
[White "MITerryble"]
[Black "Shoytan"]
[Result "0-1"]
[WhiteElo "2869"]
[BlackElo "2580"]
[TimeControl "180+1"]
[EndTime "10:17:54 PDT"]
[Termination "Shoytan won by resignation"]

1. d4 {[%clk 0:03:00.9]} 1... g6 {[%clk 0:02:57.9]} 2. Nf3 {[%clk 0:03:00.5]}
2... Nf6 {[%clk 0:02:58]} 3. Bg5 {[%clk 0:02:59.5]} 3... Bg7 {[%clk 0:02:58.1]}
4. c3 {[%clk 0:03:00.1]} 4... O-O {[%clk 0:02:57.8]} 5. Nbd2 {[%clk 0:03:00.6]}
5... d5 {[%clk 0:02:57.3]} 6. e3 {[%clk 0:03:00.5]} 6... Bf5 {[%clk 0:02:54.3]}
7. Qb3 {[%clk 0:02:59.6]} 7... b6 {[%clk 0:02:51.1]} 8. c4 {[%clk 0:02:58.6]}
8... Ne4 {[%clk 0:02:43.6]} 9. cxd5 {[%clk 0:02:53.9]} 9... Nxg5 {[%clk
0:02:40.6]} 10. Nxg5 {[%clk 0:02:54.8]} 10... e6 {[%clk 0:02:39.7]} 11. Nge4
{[%clk 0:02:07.1]} 11... exd5 {[%clk 0:02:38]} 12. Nc3 {[%clk 0:02:06.6]} 12...
Be6 {[%clk 0:02:37.5]} 13. Nf3 {[%clk 0:01:47.3]} 13... c5 {[%clk 0:02:36.6]}
14. Qd1 {[%clk 0:01:46.6]} 14... Nc6 {[%clk 0:02:35.5]} 15. Bb5 {[%clk
0:01:45.4]} 15... Rc8 {[%clk 0:02:33.9]} 16. O-O {[%clk 0:01:43.2]} 16... cxd4
{[%clk 0:02:32.5]} 17. Nxd4 {[%clk 0:01:37.4]} 17... Nxd4 {[%clk 0:02:31.4]} 18.
exd4 {[%clk 0:01:38.3]} 18... Qh4 {[%clk 0:02:31.5]} 19. Ne2 {[%clk 0:01:35.9]}
19... Rc7 {[%clk 0:02:26.4]} 20. Ba6 {[%clk 0:01:26]} 20... Bh6 {[%clk 0:02:20]}
21. Nc3 {[%clk 0:01:19.5]} 21... Bg4 {[%clk 0:02:10.8]} 22. Qd3 {[%clk
0:01:17.2]} 22... Bf5 {[%clk 0:02:08.6]} 23. Qd1 {[%clk 0:01:15.3]} 23... Rd8
{[%clk 0:01:57.3]} 24. Re1 {[%clk 0:01:14.1]} 24... Bg7 {[%clk 0:01:54.1]} 25.
g3 {[%clk 0:01:00.7]} 25... Qxd4 {[%clk 0:01:50.2]} 26. Qxd4 {[%clk 0:01:00.5]}
26... Bxd4 {[%clk 0:01:51.1]} 27. Nb5 {[%clk 0:01:01.4]} 27... Rc4 {[%clk
0:01:46.9]} 28. Nxd4 {[%clk 0:00:46.2]} 28... Rxd4 {[%clk 0:01:45.9]} 29. Red1
{[%clk 0:00:43.2]} 29... Rxd1+ {[%clk 0:01:44.1]} 30. Rxd1 {[%clk 0:00:44.1]}
30... d4 {[%clk 0:01:43.9]} 31. f3 {[%clk 0:00:42.4]} 31... Kf8 {[%clk
0:01:39.3]} 32. Kf2 {[%clk 0:00:42.3]} 32... Ke7 {[%clk 0:01:39.2]} 33. Bc4
{[%clk 0:00:42.2]} 33... Be6 {[%clk 0:01:35.8]} 34. Bd3 {[%clk 0:00:42.4]} 34...
a5 {[%clk 0:01:32.3]} 35. a3 {[%clk 0:00:42.6]} 35... Kd6 {[%clk 0:01:28.7]} 36.
Be4 {[%clk 0:00:42]} 36... Ke5 {[%clk 0:01:25.7]} 37. Rc1 {[%clk 0:00:41.2]}
37... Bb3 {[%clk 0:01:21.9]} 38. Bd3 {[%clk 0:00:39]} 38... Kd6 {[%clk
0:01:19.3]} 39. h4 {[%clk 0:00:33.8]} 39... Re8 {[%clk 0:01:19.1]} 40. Be4
{[%clk 0:00:27.8]} 40... f5 {[%clk 0:01:15.6]} 41. Rc6+ {[%clk 0:00:26.2]} 41...
Kd7 {[%clk 0:01:15.7]} 42. Rxb6 {[%clk 0:00:26.8]} 42... fxe4 {[%clk 0:01:10.5]}
43. Rxb3 {[%clk 0:00:26.9]} 43... e3+ {[%clk 0:01:10.8]} 44. Ke2 {[%clk
0:00:26.8]} 44... Kc6 {[%clk 0:01:11.1]} 45. a4 {[%clk 0:00:22.6]} 45... Kc5
{[%clk 0:01:08]} 46. Rd3 {[%clk 0:00:20]} 46... Kd5 {[%clk 0:01:05.4]} 47. Rd1
{[%clk 0:00:14.4]} 47... Rc8 {[%clk 0:01:05.1]} 48. Kd3 {[%clk 0:00:14.5]} 48...
Rb8 {[%clk 0:01:03.8]} 49. Kc2 {[%clk 0:00:14.9]} 49... Kc4 {[%clk 0:01:00.9]}
50. g4 {[%clk 0:00:09.7]} 50... d3+ {[%clk 0:01:00.6]} 51. Kc1 {[%clk
0:00:09.5]} 51... e2 {[%clk 0:00:57.4]} 52. Re1 {[%clk 0:00:09.2]} 52... Kd4
{[%clk 0:00:57.6]} 0-1

[Event "*** Titled Tuesday Blitz"]
[Site "Chess.com"]
[Date "2020.04.28"]
[Round "2"]
[White "Yuri202062"]
[Black "Nikolakis2014"]
[Result "1-0"]
[WhiteElo "2527"]
[BlackElo "2706"]
[TimeControl "180+1"]
[EndTime "10:17:54 PDT"]
[Termination "Yuri202062 won by resignation"]

1. d4 {[%clk 0:03:00.9]} 1... Nf6 {[%clk 0:02:59.5]} 2. c4 {[%clk 0:03:00.1]}
2... e6 {[%clk 0:02:59.7]} 3. Nc3 {[%clk 0:02:59.2]} 3... Bb4 {[%clk 0:02:59.6]}
4. e3 {[%clk 0:02:59.4]} 4... O-O {[%clk 0:02:58.8]} 5. Bd3 {[%clk 0:02:59.3]}
5... d5 {[%clk 0:02:58.2]} 6. cxd5 {[%clk 0:02:58.9]} 6... exd5 {[%clk
0:02:57.7]} 7. Ne2 {[%clk 0:02:59.1]} 7... c6 {[%clk 0:02:54.9]} 8. O-O {[%clk
0:02:58.1]} 8... Re8 {[%clk 0:02:55.2]} 9. f3 {[%clk 0:02:57.8]} 9... Nbd7
{[%clk 0:02:46]} 10. e4 {[%clk 0:02:54.7]} 10... dxe4 {[%clk 0:02:26.4]} 11.
fxe4 {[%clk 0:02:54.1]} 11... Nf8 {[%clk 0:02:14.6]} 12. e5 {[%clk 0:02:40.7]}
12... Nd5 {[%clk 0:02:14.1]} 13. Ne4 {[%clk 0:02:39.6]} 13... Ng6 {[%clk
0:02:13.1]} 14. Bg5 {[%clk 0:02:20.9]} 14... Be7 {[%clk 0:02:11.6]} 15. Bxe7
{[%clk 0:02:17.4]} 15... Qxe7 {[%clk 0:02:11.3]} 16. Qc1 {[%clk 0:01:52.9]}
16... Be6 {[%clk 0:02:09.2]} 17. a3 {[%clk 0:01:47.7]} 17... Rad8 {[%clk
0:01:57.1]} 18. b4 {[%clk 0:01:40.4]} 18... h6 {[%clk 0:01:47]} 19. Kh1 {[%clk
0:01:35.1]} 19... Qh4 {[%clk 0:01:38.7]} 20. Nd6 {[%clk 0:01:30.8]} 20... Rf8
{[%clk 0:01:32.2]} 21. Qd2 {[%clk 0:01:23.6]} 21... Rxd6 {[%clk 0:01:27.5]} 22.
exd6 {[%clk 0:01:22.8]} 22... Rd8 {[%clk 0:01:27.6]} 23. Bxg6 {[%clk 0:01:18.3]}
23... fxg6 {[%clk 0:01:27.1]} 24. Nf4 {[%clk 0:01:17.7]} 24... Nxf4 {[%clk
0:01:21.5]} 25. Qxf4 {[%clk 0:01:17]} 25... Qxf4 {[%clk 0:01:19.4]} 26. Rxf4
{[%clk 0:01:16.6]} 26... Rxd6 {[%clk 0:01:19.3]} 27. Re1 {[%clk 0:01:15.9]}
27... g5 {[%clk 0:00:54.4]} 28. Rfe4 {[%clk 0:01:15.5]} 28... Bc4 {[%clk
0:00:50.9]} 29. Kg1 {[%clk 0:01:14.5]} 29... Rf6 {[%clk 0:00:42.1]} 30. Re7
{[%clk 0:01:12.9]} 30... Rf7 {[%clk 0:00:25]} 31. Rxf7 {[%clk 0:01:10.4]} 31...
Kxf7 {[%clk 0:00:25.1]} 32. Kf2 {[%clk 0:01:09.4]} 32... a6 {[%clk 0:00:21.1]}
33. Re5 {[%clk 0:01:07.7]} 33... Bd5 {[%clk 0:00:20.2]} 34. g3 {[%clk
0:01:06.8]} 34... b5 {[%clk 0:00:20.2]} 35. Ke3 {[%clk 0:01:05.7]} 35... Kf6
{[%clk 0:00:20.5]} 36. Re8 {[%clk 0:01:04.6]} 36... Kf7 {[%clk 0:00:20.3]} 37.
Ra8 {[%clk 0:01:02.8]} 37... Ke6 {[%clk 0:00:20.4]} 38. Rxa6 {[%clk 0:01:02.5]}
38... Kf5 {[%clk 0:00:20.6]} 39. a4 {[%clk 0:00:58.7]} 39... bxa4 {[%clk
0:00:20.2]} 40. Rxa4 {[%clk 0:00:58.1]} 40... Kg4 {[%clk 0:00:20.6]} 41. Ra7
{[%clk 0:00:50.8]} 41... Kh3 {[%clk 0:00:19.8]} 42. Rxg7 {[%clk 0:00:49.6]}
42... Kxh2 {[%clk 0:00:20]} 43. Kf2 {[%clk 0:00:49.3]} 43... Kh3 {[%clk
0:00:20.2]} 44. Rh7 {[%clk 0:00:47.8]} 44... Kg4 {[%clk 0:00:20.5]} 45. Rxh6
{[%clk 0:00:47.8]} 45... Kf5 {[%clk 0:00:20.9]} 46. Ke3 {[%clk 0:00:47]} 46...
Kg4 {[%clk 0:00:21.3]} 47. Rg6 {[%clk 0:00:45.4]} 47... Kf5 {[%clk 0:00:21.5]}
48. Rg7 {[%clk 0:00:45]} 48... Kf6 {[%clk 0:00:21.9]} 49. Rb7 {[%clk 0:00:43.4]}
49... Kf5 {[%clk 0:00:22.2]} 50. b5 {[%clk 0:00:43.5]} 50... cxb5 {[%clk
0:00:21.4]} 51. Rxb5 {[%clk 0:00:43.1]} 51... Ke6 {[%clk 0:00:22.3]} 52. Rxd5
{[%clk 0:00:42.8]} 52... Kxd5 {[%clk 0:00:22.5]} 53. Kd3 {[%clk 0:00:42.9]} 1-0

[Event "*** Titled Tuesday Blitz"]
[Site "Chess.com"]
[Date "2020.04.28"]
[Round "2"]
[White "Fighter008"]
[Black "2L8IWUN"]
[Result "1-0"]
[WhiteElo "2507"]
[BlackElo "2709"]
[TimeControl "180+1"]
[EndTime "10:17:55 PDT"]
[Termination "Fighter008 won by resignation"]

1. e4 {[%clk 0:03:00.9]} 1... c5 {[%clk 0:02:59.5]} 2. Nf3 {[%clk 0:03:00.8]}
2... d6 {[%clk 0:03:00]} 3. d4 {[%clk 0:03:00.8]} 3... cxd4 {[%clk 0:03:00.9]}
4. Nxd4 {[%clk 0:03:01.7]} 4... Nf6 {[%clk 0:03:01.4]} 5. Nc3 {[%clk 0:03:01.9]}
5... Nc6 {[%clk 0:03:02]} 6. f3 {[%clk 0:03:01.3]} 6... e5 {[%clk 0:03:02.1]} 7.
Nb3 {[%clk 0:03:01.2]} 7... Be7 {[%clk 0:03:02.8]} 8. Be3 {[%clk 0:03:01.3]}
8... O-O {[%clk 0:03:03.4]} 9. Qd2 {[%clk 0:02:58.9]} 9... a5 {[%clk 0:03:03.8]}
10. Bb5 {[%clk 0:02:57.8]} 10... Na7 {[%clk 0:03:02.3]} 11. Bd3 {[%clk
0:02:57.8]} 11... Be6 {[%clk 0:02:57.7]} 12. O-O {[%clk 0:02:55.3]} 12... Nc8
{[%clk 0:02:51.1]} 13. Rad1 {[%clk 0:02:51.7]} 13... Qc7 {[%clk 0:02:46.2]} 14.
a3 {[%clk 0:02:49]} 14... a4 {[%clk 0:02:37.2]} 15. Nc1 {[%clk 0:02:48.6]} 15...
Nb6 {[%clk 0:02:37.5]} 16. Qf2 {[%clk 0:02:48.5]} 16... Nc4 {[%clk 0:02:34.5]}
17. Bxc4 {[%clk 0:02:48.5]} 17... Bxc4 {[%clk 0:02:35.4]} 18. Rfe1 {[%clk
0:02:49.1]} 18... Rfc8 {[%clk 0:02:30.7]} 19. Rd2 {[%clk 0:02:46.5]} 19... Be6
{[%clk 0:02:30.2]} 20. N1a2 {[%clk 0:02:40.7]} 20... h6 {[%clk 0:01:53]} 21. Nb4
{[%clk 0:02:37.4]} 21... Qc4 {[%clk 0:01:38.8]} 22. Red1 {[%clk 0:02:33.6]}
22... b5 {[%clk 0:01:30.7]} 23. Qe2 {[%clk 0:02:16.9]} 23... Rab8 {[%clk
0:01:15.9]} 24. Qxc4 {[%clk 0:02:12.6]} 24... bxc4 {[%clk 0:01:11.5]} 25. Nxa4
{[%clk 0:02:10]} 25... d5 {[%clk 0:01:05]} 26. Nxd5 {[%clk 0:02:04.1]} 26...
Nxd5 {[%clk 0:00:56.9]} 27. exd5 {[%clk 0:02:04.2]} 27... Bf5 {[%clk 0:00:53.9]}
28. d6 {[%clk 0:02:02.1]} 28... Bd8 {[%clk 0:00:49.4]} 29. Kf2 {[%clk 0:01:10]}
29... Ra8 {[%clk 0:00:39.8]} 30. Nb6 {[%clk 0:01:01.1]} 30... Bxb6 {[%clk
0:00:39.1]} 31. Bxb6 {[%clk 0:01:02]} 31... c3 {[%clk 0:00:36.6]} 32. bxc3
{[%clk 0:01:00.1]} 32... Bd7 {[%clk 0:00:34.9]} 33. Re1 {[%clk 0:00:50.3]} 33...
f6 {[%clk 0:00:33.6]} 34. f4 {[%clk 0:00:49.8]} 34... Rxc3 {[%clk 0:00:22.3]}
35. fxe5 {[%clk 0:00:49.3]} 35... fxe5 {[%clk 0:00:22.4]} 36. Rxe5 {[%clk
0:00:49.1]} 36... Rf8+ {[%clk 0:00:20.1]} 37. Kg1 {[%clk 0:00:49.1]} 37... Rxa3
{[%clk 0:00:20.2]} 38. h3 {[%clk 0:00:45.4]} 38... Bc6 {[%clk 0:00:16.6]} 39. d7
{[%clk 0:00:42.1]} 39... Ra1+ {[%clk 0:00:15.1]} 40. Kh2 {[%clk 0:00:41.6]}
40... Bxd7 {[%clk 0:00:09.4]} 41. Rxd7 {[%clk 0:00:40.6]} 41... Rc1 {[%clk
0:00:08.4]} 42. Ree7 {[%clk 0:00:39.5]} 1-0

[Event "*** Titled Tuesday Blitz"]
[Site "Chess.com"]
[Date "2020.04.28"]
[Round "2"]
[White "doons21"]
[Black "quesfr"]
[Result "1-0"]
[WhiteElo "2623"]
[BlackElo "2216"]
[TimeControl "180+1"]
[EndTime "10:17:56 PDT"]
[Termination "doons21 won by checkmate"]

1. e4 {[%clk 0:03:00.9]} 1... e6 {[%clk 0:03:00.3]} 2. d3 {[%clk 0:03:00.6]}
2... d5 {[%clk 0:03:00.3]} 3. Nd2 {[%clk 0:03:01.1]} 3... c5 {[%clk 0:02:59.9]}
4. Ngf3 {[%clk 0:03:01.3]} 4... Nc6 {[%clk 0:02:59.9]} 5. g3 {[%clk 0:03:01.8]}
5... Bd6 {[%clk 0:03:00.5]} 6. Bg2 {[%clk 0:03:02.3]} 6... Nge7 {[%clk
0:03:01.1]} 7. O-O {[%clk 0:03:02.5]} 7... O-O {[%clk 0:03:01.8]} 8. Re1 {[%clk
0:03:00.3]} 8... Qc7 {[%clk 0:03:02.3]} 9. a4 {[%clk 0:02:43.3]} 9... Bd7 {[%clk
0:03:00.2]} 10. c3 {[%clk 0:02:41.8]} 10... f6 {[%clk 0:02:16.6]} 11. Qc2 {[%clk
0:02:18.2]} 11... Rac8 {[%clk 0:02:11.7]} 12. Nf1 {[%clk 0:02:15.1]} 12... d4
{[%clk 0:02:09]} 13. c4 {[%clk 0:01:57.4]} 13... a6 {[%clk 0:01:56]} 14. h4
{[%clk 0:01:54.5]} 14... Rb8 {[%clk 0:01:55.7]} 15. Bd2 {[%clk 0:01:30.2]} 15...
b5 {[%clk 0:01:53.4]} 16. axb5 {[%clk 0:01:30]} 16... axb5 {[%clk 0:01:53.2]}
17. cxb5 {[%clk 0:01:27.4]} 17... Rxb5 {[%clk 0:01:54.1]} 18. Ra2 {[%clk
0:01:25.3]} 18... Rfb8 {[%clk 0:01:52]} 19. Rea1 {[%clk 0:01:25.5]} 19... Qb7
{[%clk 0:01:44.6]} 20. e5 {[%clk 0:01:01.9]} 20... fxe5 {[%clk 0:01:38.3]} 21.
Rb1 {[%clk 0:00:52.3]} 21... h6 {[%clk 0:01:12.2]} 22. g4 {[%clk 0:00:44.7]}
22... Nd5 {[%clk 0:01:05]} 23. Qc4 {[%clk 0:00:37]} 23... Ncb4 {[%clk
0:00:36.1]} 24. Ra3 {[%clk 0:00:36.7]} 24... Bc6 {[%clk 0:00:29.1]} 25. g5
{[%clk 0:00:36.3]} 25... Qf7 {[%clk 0:00:21.1]} 26. gxh6 {[%clk 0:00:34.8]}
26... gxh6 {[%clk 0:00:22]} 27. Ng3 {[%clk 0:00:30.1]} 27... Nf4 {[%clk
0:00:15.4]} 28. Bxf4 {[%clk 0:00:29.8]} 28... exf4 {[%clk 0:00:15.7]} 29. Ne4
{[%clk 0:00:27.9]} 29... Bxe4 {[%clk 0:00:14.4]} 30. dxe4 {[%clk 0:00:28.6]}
30... Be7 {[%clk 0:00:12.2]} 31. Bh3 {[%clk 0:00:24.4]} 31... Qg7+ {[%clk
0:00:10.2]} 32. Kh2 {[%clk 0:00:24.7]} 32... Kh7 {[%clk 0:00:09.7]} 33. Rg1
{[%clk 0:00:21]} 33... Qf6 {[%clk 0:00:08.7]} 34. Bxe6 {[%clk 0:00:20.9]} 34...
Nc6 {[%clk 0:00:07.4]} 35. Bf5+ {[%clk 0:00:20.1]} 35... Kh8 {[%clk 0:00:06.9]}
36. Ra6 {[%clk 0:00:16.6]} 36... Ne5 {[%clk 0:00:05.9]} 37. Rxf6 {[%clk
0:00:15.8]} 37... Nxc4 {[%clk 0:00:06.5]} 38. Rxh6# {[%clk 0:00:15.7]} 1-0

[Event "*** Titled Tuesday Blitz"]
[Site "Chess.com"]
[Date "2020.04.28"]
[Round "2"]
[White "ALeks_Ivlev"]
[Black "DanielTitichoca"]
[Result "0-1"]
[WhiteElo "2573"]
[BlackElo "2317"]
[TimeControl "180+1"]
[EndTime "10:17:56 PDT"]
[Termination "DanielTitichoca won by checkmate"]

1. d4 {[%clk 0:03:00.9]} 1... Nf6 {[%clk 0:02:59.2]} 2. c4 {[%clk 0:03:00.9]}
2... g6 {[%clk 0:03:00]} 3. Nc3 {[%clk 0:02:59.9]} 3... Bg7 {[%clk 0:03:00.9]}
4. e4 {[%clk 0:03:00]} 4... d6 {[%clk 0:03:00.5]} 5. Be2 {[%clk 0:03:00.1]} 5...
O-O {[%clk 0:03:01]} 6. Bg5 {[%clk 0:02:58.3]} 6... c5 {[%clk 0:02:53.4]} 7. d5
{[%clk 0:02:57.4]} 7... b5 {[%clk 0:02:50.7]} 8. cxb5 {[%clk 0:02:52.2]} 8... a6
{[%clk 0:02:50.9]} 9. b6 {[%clk 0:02:52.7]} 9... Qxb6 {[%clk 0:02:48.7]} 10. Qc2
{[%clk 0:02:47.5]} 10... Re8 {[%clk 0:02:33.6]} 11. Nf3 {[%clk 0:02:45.8]} 11...
Bg4 {[%clk 0:02:32]} 12. O-O {[%clk 0:02:42.5]} 12... Nfd7 {[%clk 0:02:12.7]}
13. Rab1 {[%clk 0:02:38.6]} 13... a5 {[%clk 0:02:04.9]} 14. Nd2 {[%clk
0:02:37.2]} 14... Bxe2 {[%clk 0:02:02.7]} 15. Nxe2 {[%clk 0:02:36.3]} 15... Na6
{[%clk 0:02:02.9]} 16. Nc4 {[%clk 0:02:34.2]} 16... Qc7 {[%clk 0:02:02.6]} 17.
a3 {[%clk 0:02:31.6]} 17... Rab8 {[%clk 0:02:00.9]} 18. Qa4 {[%clk 0:02:28.4]}
18... Nb6 {[%clk 0:01:51.1]} 19. Nxb6 {[%clk 0:02:12.9]} 19... Qxb6 {[%clk
0:01:47.7]} 20. Bd2 {[%clk 0:02:11.7]} 20... Qb5 {[%clk 0:01:43.4]} 21. Qxb5
{[%clk 0:02:01.3]} 21... Rxb5 {[%clk 0:01:44.3]} 22. Nc3 {[%clk 0:02:01.1]}
22... Rb3 {[%clk 0:01:39.3]} 23. Na4 {[%clk 0:01:59.8]} 23... Rb5 {[%clk
0:01:31.7]} 24. Nc3 {[%clk 0:01:31.8]} 24... Rb3 {[%clk 0:01:30.9]} 25. Nd1
{[%clk 0:01:31.9]} 25... Reb8 {[%clk 0:01:18.5]} 26. Bxa5 {[%clk 0:01:26.8]}
26... Rxa3 {[%clk 0:01:16.3]} 27. bxa3 {[%clk 0:01:20.4]} 27... Rxb1 {[%clk
0:01:14.4]} 28. Ne3 {[%clk 0:01:20.7]} 28... Rb3 {[%clk 0:01:14.1]} 29. Nc4
{[%clk 0:01:19.7]} 29... Bd4 {[%clk 0:01:09.7]} 30. g3 {[%clk 0:01:17.5]} 30...
Nb8 {[%clk 0:00:59.6]} 31. Kg2 {[%clk 0:01:16.3]} 31... Nd7 {[%clk 0:00:58.7]}
32. f4 {[%clk 0:01:13.3]} 32... Nf6 {[%clk 0:00:57.7]} 33. Re1 {[%clk
0:01:11.8]} 33... h5 {[%clk 0:00:43.7]} 34. h3 {[%clk 0:01:09.6]} 34... h4
{[%clk 0:00:42]} 35. g4 {[%clk 0:01:08.6]} 35... g5 {[%clk 0:00:39.6]} 36. fxg5
{[%clk 0:01:02]} 36... Nh7 {[%clk 0:00:39.4]} 37. Bd2 {[%clk 0:00:59.7]} 37...
Rg3+ {[%clk 0:00:37]} 38. Kh2 {[%clk 0:00:58.6]} 38... Rf3 {[%clk 0:00:20.9]}
39. Re2 {[%clk 0:00:48.5]} 39... Rf1 {[%clk 0:00:19.3]} 40. Be3 {[%clk
0:00:42.8]} 40... Bxe3 {[%clk 0:00:17.2]} 41. Nxe3 {[%clk 0:00:42.4]} 41... Ra1
{[%clk 0:00:17.7]} 42. Nf5 {[%clk 0:00:39.9]} 42... Nxg5 {[%clk 0:00:17.9]} 43.
Nxe7+ {[%clk 0:00:39.3]} 43... Kf8 {[%clk 0:00:18.5]} 44. Nf5 {[%clk 0:00:38.2]}
44... Rxa3 {[%clk 0:00:19.2]} 45. Nxd6 {[%clk 0:00:37.9]} 45... Rxh3+ {[%clk
0:00:19.8]} 46. Kg2 {[%clk 0:00:38.2]} 46... Rg3+ {[%clk 0:00:20]} 47. Kh2
{[%clk 0:00:32.7]} 47... Nf3+ {[%clk 0:00:19.5]} 48. Kh1 {[%clk 0:00:29.4]}
48... Rg1# {[%clk 0:00:20.4]} 0-1